fUST/lending_fUST_20260505
["ID","MTS","AMOUNT","RATE_DAILY","PERIOD"]
[421580855,1777917038000,-110944.5765706,0.00010857,2]
[421580856,1777917038000,-57008.04496813,0.00010857,2]
[421580868,1777917038000,-584.20555843,0.00010957,2]
[421580866,1777917038000,-2348.12530111,0.00010957,2]
[421580857,1777917038000,-3223.97231228,0.00010888,2]
[421580858,1777917038000,-64566.0,0.00010944,2]
[421580859,1777917038000,-2348.12530111,0.00010957,2]
[421580862,1777917038000,-2348.12530111,0.00010957,2]
[421580880,1777917038000,-2395.08780715,0.00010957,2]
[421580860,1777917038000,-2348.12530111,0.00010957,2]
[421580865,1777917038000,-2348.12530111,0.00010957,2]
[421580861,1777917038000,-2348.12530111,0.00010957,2]
[421580864,1777917038000,-2348.12530111,0.00010957,2]
[421580870,1777917038000,-2348.12530111,0.00010957,2]
[421580869,1777917038000,-2348.12530111,0.00010957,2]
[421580873,1777917038000,-2348.12530111,0.00010957,2]
[421580871,1777917038000,-2348.12530111,0.00010957,2]
[421580872,1777917038000,-2348.12530111,0.00010957,2]
[421580874,1777917038000,-2348.12530111,0.00010957,2]
[421580875,1777917038000,-2348.12530111,0.00010957,2]
[421580876,1777917038000,-2348.12530111,0.00010957,2]
[421580863,1777917038000,-2348.12530111,0.00010957,2]
[421580901,1777917038000,-210.975,0.00010969,2]
[421580914,1777917038000,-823.0,0.00011514,2]
[421580905,1777917038000,-500.0,0.0001131,11]
[421580936,1777917038000,-456.2418086,0.00012078,2]
[421580935,1777917038000,-325.6623219,0.00012078,2]
[421580934,1777917038000,-196.4268325,0.00012078,2]
[421580937,1777917038000,-4545.97417859,0.00012097,2]
[421580944,1777917038000,-454.38555849,0.00012148,2]
[421580955,1777917038000,-557.5788265,0.0001249,2]
[421580954,1777917038000,-461.67526834,0.0001249,2]
[421580953,1777917038000,-745.65223616,0.00012437,2]
[421580948,1777917038000,-693.3919763,0.00012327,2]
[421580950,1777917038000,-160.0,0.00012382,2]
[421580945,1777917038000,-621.78829552,0.00012162,2]
[421580942,1777917038000,-15516.174898,0.00012135,2]
[421580962,1777917038000,-862.28603014,0.00012657,2]
[421580947,1777917038000,-668.65185757,0.00012272,2]
[421580949,1777917038000,-719.04747942,0.00012382,2]
[421580952,1777917038000,-14128.336983,0.00012382,2]
[421580951,1777917038000,-7144.168491,0.00012382,2]
[421580957,1777917038000,-500.0,0.00012525,14]
[421580956,1777917038000,-773.2413689,0.00012492,2]
[421580959,1777917038000,-3595.2373971,0.00012532,2]
[421580958,1777917038000,-500.0,0.00012525,15]
[421580961,1777917038000,-831.51979763,0.00012602,2]
[421580960,1777917038000,-801.85129955,0.00012547,2]
[421580900,1777917038000,-500.0,0.00010959,2]
[421580946,1777917038000,-644.79446246,0.00012217,2]
[421580941,1777917038000,-7838.087449,0.00012135,2]
[421580943,1777917038000,-6447.94601,0.00012135,2]
[421580940,1777917038000,-160.0,0.00012135,2]
[421580911,1777917038000,-168.42,0.00011477,2]
[421580933,1777917038000,-456.2418086,0.00012058,2]
[421580910,1777917038000,-500.0,0.00011454,2]
[421580912,1777917038000,-168.43,0.00011485,2]
[421580913,1777917038000,-168.95,0.00011502,2]
[421580917,1777917038000,-173.12,0.00011586,2]
[421580915,1777917038000,-169.94,0.00011525,2]
[421580926,1777917038000,-3466.95988149,0.00011984,2]
[421580918,1777917038000,-174.57,0.00011612,2]
[421580927,1777917038000,-557.5788265,0.00011997,2]
[421580928,1777917038000,-473.54792733,0.00012,2]
[421580919,1777917038000,-174.24,0.00011613,2]
[421580916,1777917038000,-170.82,0.00011554,2]
[421580923,1777917038000,-537.6845,0.00011942,2]
[421580924,1777917038000,-537.6845,0.00011942,2]
[421580920,1777917038000,-791.0,0.000118,2]
[421580921,1777917038000,-1345.79052363,0.000119,5]
[421580925,1777917038000,-488.57964822,0.00011983,2]
[421580922,1777917038000,-445.202766,0.00011942,2]
[421580931,1777917038000,-578.20924308,0.00012052,2]
[421580938,1777917038000,-599.60298507,0.00012107,2]
[421580930,1777917038000,-1048.0,0.00012008,2]
[421580932,1777917038000,-205.6953739,0.00012057,2]
[421580939,1777917038000,-720.0,0.0001211,2]
[421580929,1777917038000,-500.0,0.00012007,13]
[421581003,1777917039000,-822.0,0.00013245,2]
[421580995,1777917039000,-200.32698435,0.00013151,2]
[421581002,1777917039000,-160.0,0.00013241,2]
[421581004,1777917039000,-1548.46427599,0.0001328,2]
[421581001,1777917039000,-160.0,0.00013241,2]
[421580997,1777917039000,-151.0537017,0.00013233,14]
[421581000,1777917039000,-160.0,0.00013241,2]
[421580999,1777917039000,-160.0,0.00013241,2]
[421580996,1777917039000,-733.54810079,0.00013182,2]
[421580998,1777917039000,-1548.46427599,0.00013237,2]
[421581016,1777917039000,-1548.46427599,0.00013552,2]
[421581005,1777917039000,-1548.46427599,0.00013312,2]
[421581006,1777917039000,-864.0,0.00013321,2]
[421581022,1777917039000,-488.57964822,0.00013598,2]
[421581007,1777917039000,-1548.46427599,0.00013348,2]
[421581008,1777917039000,-1548.46427599,0.00013414,2]
[421581009,1777917039000,-500.0,0.00013415,18]
[421581010,1777917039000,-5997.23297149,0.00013452,2]
[421581013,1777917039000,-1548.46427599,0.00013547,2]
[421581014,1777917039000,-602.745,0.00013552,2]
[421581012,1777917039000,-822.0,0.00013525,2]
[421581011,1777917039000,-822.0,0.000135,2]
[421581017,1777917039000,-1548.46427599,0.00013575,2]
[421581019,1777917039000,-496.47127164,0.00013586,2]
[421581020,1777917039000,-599.60298507,0.00013586,2]
[421581025,1777917039000,-1548.46427599,0.00013611,2]
[421581018,1777917039000,-1548.46427599,0.00013578,2]
[421581015,1777917039000,-189.74118105,0.00013552,2]
[421580994,1777917039000,-200.3,0.00013151,2]
[421580966,1777917039000,-927.27566595,0.00012767,2]
[421580987,1777917039000,-578.20924308,0.00013038,2]
[421581027,1777917039000,-3866.20684448,0.00013628,2]
[421580967,1777917039000,-5457.73178584,0.00012775,2]
[421580968,1777917039000,-488.57964822,0.00012791,2]
[421580964,1777917039000,-894.19061326,0.00012712,2]
[421580965,1777917039000,-10688.301067,0.00012742,2]
[421580963,1777917039000,-1152.0,0.00012666,2]
[421580970,1777917039000,-500.0,0.00012867,16]
[421580980,1777917039000,-195.9491867,0.00012934,2]
[421580971,1777917039000,-997.16350561,0.00012877,2]
[421580969,1777917039000,-961.58486559,0.00012822,2]
[421580979,1777917039000,-151.0,0.00012934,2]
[421580977,1777917039000,-822.0,0.00012893,2]
[421580972,1777917039000,-612.57,0.00012879,2]
[421580975,1777917039000,-456.2076372,0.0001288,2]
[421580978,1777917039000,-822.0,0.00012893,2]
[421580981,1777917039000,-733.54810079,0.00012984,2]
[421580974,1777917039000,-456.2418086,0.0001288,2]
[421580973,1777917039000,-151.0,0.0001288,2]
[421580976,1777917039000,-822.0,0.00012893,2]
[421580983,1777917039000,-2318.67120222,0.00013,2]
[421580993,1777917039000,-200.3,0.00013151,2]
[421580982,1777917039000,-406.05,0.00012984,2]
[421580991,1777917039000,-500.0,0.00013151,17]
[421580992,1777917039000,-200.3,0.00013151,2]
[421580985,1777917039000,-1048.0,0.00013032,2]
[421580984,1777917039000,-9742.047943,0.00013002,2]
[421580986,1777917039000,-478.75725327,0.00013038,2]
[421580989,1777917039000,-3728.2611808,0.0001308,2]
[421580990,1777917039000,-300.5,0.000131,2]
[421580988,1777917039000,-456.1217259,0.00013062,2]
[421581026,1777917039000,-822.0,0.00013616,2]
[421581046,1777917039000,-500.0,0.00013698,2]
[421581021,1777917039000,-822.0,0.00013596,2]
[421581074,1777917039000,-517.93,0.00013698,2]
[421581075,1777917039000,-517.93,0.00013698,2]
[421581064,1777917039000,-500.0,0.00013698,2]
[421581070,1777917039000,-517.93,0.00013698,2]
[421581066,1777917039000,-415.80286446,0.00013698,2]
[421581069,1777917039000,-517.93,0.00013698,2]
[421581068,1777917039000,-517.93,0.00013698,2]
[421581067,1777917039000,-517.93,0.00013698,2]
[421581071,1777917039000,-517.93,0.00013698,2]
[421581085,1777917039000,-517.93,0.00013698,2]
[421581077,1777917039000,-517.93,0.00013698,2]
[421581086,1777917039000,-517.93,0.00013698,2]
[421581079,1777917039000,-517.93,0.00013698,2]
[421581073,1777917039000,-517.93,0.00013698,2]
[421581088,1777917039000,-517.93,0.00013698,2]
[421581090,1777917039000,-517.93,0.00013698,2]
[421581081,1777917039000,-517.93,0.00013698,2]
[421581092,1777917039000,-517.93,0.00013698,2]
[421581095,1777917039000,-517.93,0.00013698,2]
[421581083,1777917039000,-517.93,0.00013698,2]
[421581097,1777917039000,-517.93,0.00013698,2]
[421581094,1777917039000,-517.93,0.00013698,2]
[421581103,1777917039000,-500.0,0.00013698,2]
[421581105,1777917039000,-500.0,0.00013698,2]
[421581107,1777917039000,-500.0,0.00013698,2]
[421581101,1777917039000,-500.0,0.00013698,2]
[421581099,1777917039000,-518.09482584,0.00013698,2]
[421581028,1777917039000,-500.0,0.00013697,20]
[421581076,1777917039000,-517.93,0.00013698,2]
[421581065,1777917039000,-500.0,0.00013698,2]
[421581078,1777917039000,-517.93,0.00013698,2]
[421581063,1777917039000,-500.0,0.00013698,2]
[421581024,1777917039000,-500.0,0.0001361,19]
[421581072,1777917039000,-517.93,0.00013698,2]
[421581023,1777917039000,-1548.46427599,0.00013601,2]
[421581029,1777917039000,-500.0,0.00013697,21]
[421581032,1777917039000,-500.0,0.00013697,21]
[421581034,1777917039000,-500.0,0.00013697,21]
[421581036,1777917039000,-500.0,0.00013697,21]
[421581041,1777917039000,-500.0,0.00013698,2]
[421581040,1777917039000,-500.0,0.00013698,2]
[421581035,1777917039000,-500.0,0.00013697,21]
[421581037,1777917039000,-521.36597966,0.00013697,21]
[421581038,1777917039000,-500.0,0.00013698,2]
[421581042,1777917039000,-500.0,0.00013698,2]
[421581039,1777917039000,-552.80137112,0.00013698,2]
[421581030,1777917039000,-500.0,0.00013697,21]
[421581050,1777917039000,-500.0,0.00013698,2]
[421581047,1777917039000,-500.0,0.00013698,2]
[421581059,1777917039000,-500.0,0.00013698,2]
[421581054,1777917039000,-500.0,0.00013698,2]
[421581055,1777917039000,-500.0,0.00013698,2]
[421581052,1777917039000,-500.0,0.00013698,2]
[421581045,1777917039000,-500.0,0.00013698,2]
[421581056,1777917039000,-500.02832421,0.00013698,2]
[421581058,1777917039000,-500.0,0.00013698,2]
[421581061,1777917039000,-500.0,0.00013698,2]
[421581057,1777917039000,-500.0,0.00013698,2]
[421581060,1777917039000,-500.0,0.00013698,2]
[421581049,1777917039000,-560.91035059,0.00013698,2]
[421581044,1777917039000,-368.92468967,0.00013698,2]
[421581062,1777917039000,-500.0,0.00013698,2]
[421581151,1777917040000,-7947.72,0.00013698,2]
[421581161,1777917040000,-7947.72,0.00013698,2]
[421581186,1777917040000,-1364.32,0.00013698,2]
[421581163,1777917040000,-7947.72,0.00013698,2]
[421581149,1777917040000,-7947.72,0.00013698,2]
[421581147,1777917040000,-7947.72,0.00013698,2]
[421581153,1777917040000,-7947.72,0.00013698,2]
[421581170,1777917040000,-1364.32,0.00013698,2]
[421581167,1777917040000,-1364.32,0.00013698,2]
[421581165,1777917040000,-7947.94992088,0.00013698,2]
[421581155,1777917040000,-7947.72,0.00013698,2]
[421581168,1777917040000,-1364.32,0.00013698,2]
[421581159,1777917040000,-7947.72,0.00013698,2]
[421581145,1777917040000,-7947.72,0.00013698,2]
[421581157,1777917040000,-7947.72,0.00013698,2]
[421581134,1777917040000,-7947.72,0.00013698,2]
[421581115,1777917040000,-500.0,0.00013698,2]
[421581143,1777917040000,-7947.72,0.00013698,2]
[421581189,1777917040000,-1364.32,0.00013698,2]
[421581109,1777917040000,-500.0,0.00013698,2]
[421581111,1777917040000,-500.0,0.00013698,2]
[421581113,1777917040000,-500.0,0.00013698,2]
[421581119,1777917040000,-7947.72,0.00013698,2]
[421581117,1777917040000,-574.70344563,0.00013698,2]
[421581121,1777917040000,-7947.72,0.00013698,2]
[421581122,1777917040000,-7947.72,0.00013698,2]
[421581140,1777917040000,-7947.72,0.00013698,2]
[421581138,1777917040000,-7947.72,0.00013698,2]
[421581136,1777917040000,-7947.72,0.00013698,2]
[421581124,1777917040000,-7947.72,0.00013698,2]
[421581126,1777917040000,-7947.72,0.00013698,2]
[421581130,1777917040000,-7947.72,0.00013698,2]
[421581128,1777917040000,-7947.72,0.00013698,2]
[421581132,1777917040000,-7947.72,0.00013698,2]
[421581181,1777917040000,-1364.32,0.00013698,2]
[421581236,1777917040000,-1364.32,0.00013698,2]
[421581192,1777917040000,-1364.32,0.00013698,2]
[421581270,1777917040000,-500.0,0.00013698,2]
[421581265,1777917040000,-500.0,0.00013698,2]
[421581272,1777917040000,-500.0,0.00013698,2]
[421581267,1777917040000,-436.95083772,0.00013698,2]
[421581296,1777917040000,-15000.0,0.00013831,2]
[421581298,1777917040000,-1548.46427599,0.00013844,2]
[421581284,1777917040000,-1000.0,0.00013699,2]
[421581301,1777917040000,-1411.0,0.00013853,2]
[421581303,1777917040000,-646.0,0.00013853,2]
[421581291,1777917040000,-157.62,0.00013699,2]
[421581287,1777917040000,-166.70373603,0.00013699,30]
[421581294,1777917040000,-822.0,0.00013742,2]
[421581305,1777917040000,-2214.0,0.00013853,2]
[421581307,1777917040000,-220.2485,0.00013863,7]
[421581184,1777917040000,-1364.32,0.00013698,2]
[421581282,1777917040000,-625.29607293,0.00013698,2]
[421581279,1777917040000,-500.0,0.00013698,2]
[421581289,1777917040000,-1000.0,0.00013699,2]
[421581263,1777917040000,-1364.39501584,0.00013698,2]
[421581200,1777917040000,-1364.32,0.00013698,2]
[421581277,1777917040000,-500.0,0.00013698,2]
[421581195,1777917040000,-1364.32,0.00013698,2]
[421581197,1777917040000,-1364.32,0.00013698,2]
[421581233,1777917040000,-1364.32,0.00013698,2]
[421581239,1777917040000,-1364.32,0.00013698,2]
[421581242,1777917040000,-1364.32,0.00013698,2]
[421581230,1777917040000,-1364.32,0.00013698,2]
[421581250,1777917040000,-1364.32,0.00013698,2]
[421581247,1777917040000,-1364.32,0.00013698,2]
[421581256,1777917040000,-1364.32,0.00013698,2]
[421581253,1777917040000,-1364.32,0.00013698,2]
[421581258,1777917040000,-1364.32,0.00013698,2]
[421581275,1777917040000,-500.0,0.00013698,2]
[421581244,1777917040000,-1364.32,0.00013698,2]
[421581260,1777917040000,-1364.32,0.00013698,2]
[421581370,1777917041000,-514.84070869,0.00014134,2]
[421581383,1777917041000,-5065.86493,0.0001424,7]
[421581372,1777917041000,-621.78829552,0.00014134,2]
[421581378,1777917041000,-7314.97,0.00014149,2]
[421581380,1777917041000,-436.60508583,0.00014176,2]
[421581375,1777917041000,-514.52482358,0.00014148,2]
[421581368,1777917041000,-6369.48939323,0.0001413,2]
[421581363,1777917041000,-300.0,0.000141,2]
[421581366,1777917041000,-321.18067572,0.000141,2]
[421581398,1777917041000,-822.0,0.00014477,2]
[421581409,1777917041000,-822.0,0.0001452,2]
[421581401,1777917041000,-500.0,0.000145,2]
[421581404,1777917041000,-151.0,0.000145,2]
[421581389,1777917041000,-822.0,0.00014256,2]
[421581391,1777917041000,-321.18067572,0.000143,2]
[421581395,1777917041000,-321.18067572,0.000144,2]
[421581393,1777917041000,-151.0,0.000143,2]
[421581406,1777917041000,-822.0,0.00014515,2]
[421581424,1777917041000,-482.57314869,0.00014682,2]
[421581419,1777917041000,-321.18067572,0.000146,2]
[421581358,1777917041000,-15000.0,0.00014061,2]
[421581386,1777917041000,-822.0,0.00014256,2]
[421581354,1777917041000,-659.16,0.00014,2]
[421581310,1777917041000,-1548.46427599,0.00013864,2]
[421581356,1777917041000,-321.18067572,0.00014,2]
[421581414,1777917041000,-160.0,0.00014599,3]
[421581315,1777917041000,-1548.46427599,0.00013869,2]
[421581319,1777917041000,-225.3247109,0.00013884,2]
[421581317,1777917041000,-1548.46427599,0.00013883,2]
[421581321,1777917041000,-456.2076372,0.00013884,2]
[421581312,1777917041000,-1548.46427599,0.00013868,2]
[421581323,1777917041000,-456.2418086,0.00013885,2]
[421581326,1777917041000,-151.0,0.00013885,2]
[421581328,1777917041000,-456.2076372,0.00013885,2]
[421581342,1777917041000,-1548.46427599,0.00013949,2]
[421581340,1777917041000,-1548.46427599,0.00013947,2]
[421581330,1777917041000,-151.0,0.000139,2]
[421581345,1777917041000,-5557.916554,0.00013955,2]
[421581337,1777917041000,-1548.46427599,0.00013945,2]
[421581333,1777917041000,-1548.46427599,0.00013921,2]
[421581335,1777917041000,-1613.0,0.00013933,2]
[421581347,1777917041000,-1548.46427599,0.00013962,2]
[421581360,1777917041000,-151.0,0.00014061,2]
[421581349,1777917041000,-1101.15013117,0.00013987,2]
[421581352,1777917041000,-1548.46427599,0.00013994,2]
[421581361,1777917041000,-151.0,0.00014061,2]
[421581357,1777917041000,-1548.46427599,0.00014048,2]
[421581422,1777917041000,-1000.0,0.00014653,2]
[421581521,1777917041000,-2000.0,0.00015174,2]
[421581417,1777917041000,-151.0,0.000146,2]
[421581480,1777917041000,-151.0,0.00015,2]
[421581486,1777917041000,-809.22100922,0.00015036,2]
[421581478,1777917041000,-151.0,0.00015,2]
[421581477,1777917041000,-10103.59912667,0.00015,2]
[421581494,1777917041000,-250.0,0.000151,2]
[421581492,1777917041000,-160.0,0.00015082,5]
[421581499,1777917041000,-822.0,0.00015113,2]
[421581484,1777917041000,-163.349913,0.00015,2]
[421581482,1777917041000,-151.0,0.00015,2]
[421581501,1777917041000,-625.73630056,0.00015114,30]
[421581513,1777917041000,-500.0,0.0001515,2]
[421581503,1777917041000,-700.0,0.00015136,2]
[421581515,1777917041000,-787.88464263,0.00015159,2]
[421581505,1777917041000,-700.0,0.00015136,2]
[421581507,1777917041000,-700.0,0.00015136,2]
[421581518,1777917041000,-822.0,0.0001516,2]
[421581525,1777917041000,-2000.0,0.00015174,2]
[421581520,1777917041000,-2000.0,0.00015174,2]
[421581509,1777917041000,-700.0,0.00015136,2]
[421581511,1777917041000,-787.88464263,0.00015143,2]
[421581523,1777917041000,-2000.0,0.00015174,2]
[421581497,1777917041000,-931.43229086,0.00015108,2]
[421581490,1777917041000,-931.43229086,0.00015078,2]
[421581411,1777917041000,-2069.05879889,0.00014598,2]
[421581473,1777917041000,-500.0,0.00015,2]
[421581429,1777917041000,-160.0,0.000147,7]
[421581426,1777917041000,-256.68644112,0.00014682,2]
[421581431,1777917041000,-151.0,0.000147,2]
[421581436,1777917041000,-7281.24700061,0.00014807,2]
[421581434,1777917041000,-822.0,0.00014782,2]
[421581443,1777917041000,-1048.0,0.00014896,4]
[421581439,1777917041000,-160.0,0.0001484,4]
[421581447,1777917041000,-500.0,0.00014896,2]
[421581441,1777917041000,-822.0,0.00014857,2]
[421581445,1777917041000,-1048.0,0.00014896,4]
[421581449,1777917041000,-500.0,0.00014896,2]
[421581488,1777917041000,-187.444438,0.00015068,2]
[421581451,1777917041000,-931.43229086,0.00014921,2]
[421581467,1777917041000,-1009.0,0.00015,6]
[421581464,1777917041000,-200.25365054,0.00015,2]
[421581460,1777917041000,-1012.44235779,0.00015,7]
[421581453,1777917041000,-809.22100922,0.00014993,2]
[421581458,1777917041000,-160.86206404,0.00015,3]
[421581469,1777917041000,-100174.98623618,0.00015,7]
[421581471,1777917041000,-110000.0,0.00015,2]
[421581456,1777917041000,-152.76231784,0.00015,2]
[421581475,1777917041000,-151.0,0.00015,2]
[421581462,1777917041000,-2830.0,0.00015,7]
[421581582,1777917042000,-650.0,0.00015552,2]
[421581586,1777917042000,-650.0,0.00015552,2]
[421581590,1777917042000,-650.0,0.00015552,2]
[421581571,1777917042000,-822.0,0.00015431,2]
[421581577,1777917042000,-7488.70109175,0.00015485,3]
[421581575,1777917042000,-822.0,0.0001548,2]
[421581573,1777917042000,-822.0,0.00015475,2]
[421581579,1777917042000,-151.0,0.000155,2]
[421581584,1777917042000,-650.0,0.00015552,2]
[421581580,1777917042000,-10103.59912667,0.000155,2]
[421581607,1777917042000,-10103.59912667,0.000156,2]
[421581588,1777917042000,-650.0,0.00015552,2]
[421581594,1777917042000,-650.0,0.00015552,2]
[421581596,1777917042000,-650.0,0.00015552,2]
[421581598,1777917042000,-650.0,0.00015552,2]
[421581600,1777917042000,-229.0,0.00015552,2]
[421581604,1777917042000,-3214.43214616,0.00015588,2]
[421581614,1777917042000,-300.0,0.0001565,2]
[421581602,1777917042000,-160.0,0.00015565,7]
[421581605,1777917042000,-882.69074172,0.000156,2]
[421581567,1777917042000,-650.0,0.00015378,2]
[421581592,1777917042000,-650.0,0.00015552,2]
[421581569,1777917042000,-331.0,0.00015378,2]
[421581547,1777917042000,-787.88464263,0.00015298,2]
[421581564,1777917042000,-650.0,0.00015378,2]
[421581535,1777917042000,-2000.0,0.00015174,2]
[421581528,1777917042000,-2000.0,0.00015174,2]
[421581544,1777917042000,-10103.59912667,0.000152,2]
[421581529,1777917042000,-2000.0,0.00015174,2]
[421581540,1777917042000,-822.0,0.00015177,2]
[421581533,1777917042000,-2000.0,0.00015174,2]
[421581542,1777917042000,-160.0,0.000152,4]
[421581531,1777917042000,-2000.0,0.00015174,2]
[421581538,1777917042000,-2000.0,0.00015174,2]
[421581545,1777917042000,-931.43229086,0.0001521,2]
[421581546,1777917042000,-232.79,0.00015258,2]
[421581616,1777917042000,-300.0,0.0001565,2]
[421581548,1777917042000,-10103.59912667,0.000153,2]
[421581549,1777917042000,-160.0,0.00015324,6]
[421581560,1777917042000,-650.0,0.00015378,2]
[421581551,1777917042000,-2258.0,0.00015326,2]
[421581562,1777917042000,-650.0,0.00015378,2]
[421581558,1777917042000,-650.0,0.00015378,2]
[421581554,1777917042000,-650.0,0.00015378,2]
[421581552,1777917042000,-650.0,0.00015378,2]
[421581556,1777917042000,-650.0,0.00015378,2]
[421581566,1777917042000,-650.0,0.00015378,2]
[421581612,1777917042000,-3214.43214616,0.00015642,2]
[421581609,1777917042000,-3214.43214616,0.00015615,2]
[421581620,1777917042000,-300.0,0.0001565,2]
[421581681,1777917042000,-3566.23966605,0.000159,2]
[421581683,1777917042000,-160.0,0.000159,5]
[421581685,1777917042000,-1822.14,0.000159,8]
[421581692,1777917042000,-160.86256713,0.00015999,2]
[421581688,1777917042000,-200.0,0.00015999,2]
[421581698,1777917042000,-38000.0,0.00016,3]
[421581689,1777917042000,-200.0,0.00015999,2]
[421581694,1777917042000,-200.0,0.00015999,2]
[421581696,1777917042000,-200.0,0.00015999,2]
[421581700,1777917042000,-38000.0,0.00016,3]
[421581675,1777917042000,-266.58,0.0001589,2]
[421581703,1777917042000,-38000.0,0.00016,3]
[421581618,1777917042000,-300.0,0.0001565,2]
[421581710,1777917042000,-38000.0,0.00016,3]
[421581708,1777917042000,-38000.0,0.00016,3]
[421581718,1777917042000,-2974.85912051,0.00016,2]
[421581728,1777917042000,-3000.0,0.00016,2]
[421581723,1777917042000,-68997.0,0.00016,2]
[421581725,1777917042000,-1037.3,0.00016,5]
[421581712,1777917042000,-38000.0,0.00016,3]
[421581730,1777917042000,-3210.87947665,0.00016,3]
[421581715,1777917042000,-307605.16431348,0.00016,2]
[421581706,1777917042000,-38000.0,0.00016,3]
[421581679,1777917042000,-10103.59912667,0.000159,2]
[421581720,1777917042000,-31812.84729633,0.00016,2]
[421581678,1777917042000,-882.69074172,0.000159,2]
[421581629,1777917042000,-325.0,0.0001565,2]
[421581631,1777917042000,-240.0,0.00015656,2]
[421581622,1777917042000,-300.0,0.0001565,2]
[421581624,1777917042000,-300.0,0.0001565,2]
[421581633,1777917042000,-210.0,0.00015656,2]
[421581635,1777917042000,-3214.43214616,0.00015669,2]
[421581628,1777917042000,-300.0,0.0001565,2]
[421581637,1777917042000,-2301.76859156,0.0001567,2]
[421581639,1777917042000,-3214.43214616,0.00015695,2]
[421581626,1777917042000,-300.0,0.0001565,2]
[421581672,1777917042000,-300.0,0.0001589,3]
[421581642,1777917042000,-1995.149532,0.00015775,2]
[421581643,1777917042000,-822.0,0.00015798,2]
[421581647,1777917042000,-1751.5839,0.000158,2]
[421581660,1777917042000,-30000.0,0.0001588,2]
[421581649,1777917042000,-882.69074172,0.000158,2]
[421581663,1777917042000,-151.0,0.0001588,2]
[421581654,1777917042000,-160.0,0.00015807,8]
[421581666,1777917042000,-151.0,0.0001588,2]
[421581657,1777917042000,-787.88464263,0.00015879,2]
[421581651,1777917042000,-10103.59912667,0.000158,2]
[421581669,1777917042000,-291.79578792,0.00015888,7]
[421581645,1777917042000,-248.2456892,0.000158,2]
[421581807,1777917043000,-500.0,0.00011564,2]
[421581809,1777917043000,-500.0,0.00012112,2]
[421581806,1777917043000,-500.0,0.0001129,2]
[421581811,1777917043000,-291.38989044,0.00012386,2]
[421581812,1777917043000,-806.05713926,0.000145,2]
[421581808,1777917043000,-500.0,0.00011838,2]
[421581830,1777917046000,-2935.6601097,0.000129,2]
[421581831,1777917046000,-1462.74572623,0.000145,2]
[421581835,1777917046000,-700.0,0.00015136,2]
[421581838,1777917046000,-512.0,0.00015136,2]
[421581836,1777917046000,-700.0,0.00015136,2]
[421581832,1777917046000,-349.05640779,0.00015007,2]
[421581837,1777917046000,-700.0,0.00015136,2]
[421581833,1777917046000,-700.0,0.00015136,2]
[421581840,1777917046000,-5434.43975253,0.00016,3]
[421581841,1777917046000,-1576.59962749,0.00016,2]
[421581834,1777917046000,-700.0,0.00015136,2]
[421581844,1777917637000,44155.93628408,0.00021,120]
[421581901,1777918232000,-2214.0,0.00011652,2]
[421581922,1777918232000,-557.5788265,0.00011747,2]
[421581914,1777918232000,-185.0,0.00011652,2]
[421581918,1777918232000,-537.6845,0.00011692,2]
[421581900,1777918232000,-273.558,0.00011652,2]
[421581911,1777918232000,-743.0,0.00011652,2]
[421581884,1777918232000,-5000.0,0.00010967,2]
[421581908,1777918232000,-460.394,0.00011652,2]
[421581906,1777918232000,-646.0,0.00011652,2]